Workbook

Sheet Winst- en verliesrekening
B1: Winst en verliesAfschrift
D3: VORIGE PERIODE | E3: BUDGET | F3: HUIDIGE PERIODE | H3: HUIDIGE PERIODE ALS % VAN VERKOOP | I3: % WIJZIGING TOV VORIGE PERIODE | J3: % AFWIJKING VAN BUDGET
B4: Verkoopinkomsten
B5: Product/service 1 | D5: 40 | E5: 50 | F5: 45 | H5: =IFERROR(Verkoopinkomsten[[#This Row],[Huidige periode]]/SUBTOTAL(109,Verkoopinkomsten[Huidige periode]),0) -> 100.0% | I5: =IFERROR(Verkoopinkomsten[[#This Row],[Huidige periode]]/Verkoopinkomsten[[#This Row],[Vorige periode]]-1,0) -> 12.5% | J5: =IFERROR(Verkoopinkomsten[[#This Row],[Huidige periode]]/Verkoopinkomsten[[#This Row],[Budget]]-1,0) -> -10.0%
B6: Product/service 2 | H6: =IFERROR(Verkoopinkomsten[[#This Row],[Huidige periode]]/SUBTOTAL(109,Verkoopinkomsten[Huidige periode]),0) -> 0 | I6: =IFERROR(Verkoopinkomsten[[#This Row],[Huidige periode]]/Verkoopinkomsten[[#This Row],[Vorige periode]]-1,0) -> 0 | J6: =IFERROR(Verkoopinkomsten[[#This Row],[Huidige periode]]/Verkoopinkomsten[[#This Row],[Budget]]-1,0) -> 0
B7: Product/service 3 | H7: =IFERROR(Verkoopinkomsten[[#This Row],[Huidige periode]]/SUBTOTAL(109,Verkoopinkomsten[Huidige periode]),0) -> 0 | I7: =IFERROR(Verkoopinkomsten[[#This Row],[Huidige periode]]/Verkoopinkomsten[[#This Row],[Vorige periode]]-1,0) -> 0 | J7: =IFERROR(Verkoopinkomsten[[#This Row],[Huidige periode]]/Verkoopinkomsten[[#This Row],[Budget]]-1,0) -> 0
B8: Product/service 4 | H8: =IFERROR(Verkoopinkomsten[[#This Row],[Huidige periode]]/SUBTOTAL(109,Verkoopinkomsten[Huidige periode]),0) -> 0 | I8: =IFERROR(Verkoopinkomsten[[#This Row],[Huidige periode]]/Verkoopinkomsten[[#This Row],[Vorige periode]]-1,0) -> 0 | J8: =IFERROR(Verkoopinkomsten[[#This Row],[Huidige periode]]/Verkoopinkomsten[[#This Row],[Budget]]-1,0) -> 0
B9: Totaal | D9: =SUBTOTAL(109,Verkoopinkomsten[Vorige periode]) -> 40 | E9: =SUBTOTAL(109,Verkoopinkomsten[Budget]) -> 50 | F9: =SUBTOTAL(109,Verkoopinkomsten[Huidige periode]) -> 45 | H9: =IFERROR(Verkoopinkomsten[[#Totals],[Huidige periode]]/Verkoopinkomsten[[#Totals],[Huidige periode]],0) -> 100.0% | I9: =IFERROR(Verkoopinkomsten[[#Totals],[Huidige periode]]/Verkoopinkomsten[[#Totals],[Vorige periode]]-1,0) -> 12.5% | J9: =SUBTOTAL(109,Verkoopinkomsten[% afwijking van budget]) -> -10.0%
B11: Verkoopkosten
B12: Product/service 1 | E12: 2 | F12: 3 | H12: =IFERROR(Verkoopkosten[[#This Row],[Huidige periode]]/SUBTOTAL(109,Verkoopinkomsten[Huidige periode]),0) -> 6.7% | I12: =IFERROR(Verkoopkosten[[#This Row],[Huidige periode]]/Verkoopkosten[[#This Row],[Vorige periode]]-1,0) -> 0 | J12: =IFERROR(Verkoopkosten[[#This Row],[Huidige periode]]/Verkoopkosten[[#This Row],[Budget]]-1,0) -> 50.0%
B13: Product/service 2 | E13: 5 | F13: 3 | H13: =IFERROR(Verkoopkosten[[#This Row],[Huidige periode]]/SUBTOTAL(109,Verkoopinkomsten[Huidige periode]),0) -> 6.7% | I13: =IFERROR(Verkoopkosten[[#This Row],[Huidige periode]]/Verkoopkosten[[#This Row],[Vorige periode]]-1,0) -> 0 | J13: =IFERROR(Verkoopkosten[[#This Row],[Huidige periode]]/Verkoopkosten[[#This Row],[Budget]]-1,0) -> -40.0%
B14: Product/service 3 | F14: 1 | H14: =IFERROR(Verkoopkosten[[#This Row],[Huidige periode]]/SUBTOTAL(109,Verkoopinkomsten[Huidige periode]),0) -> 2.2% | I14: =IFERROR(Verkoopkosten[[#This Row],[Huidige periode]]/Verkoopkosten[[#This Row],[Vorige periode]]-1,0) -> 0 | J14: =IFERROR(Verkoopkosten[[#This Row],[Huidige periode]]/Verkoopkosten[[#This Row],[Budget]]-1,0) -> 0
B15: Product/service 4 | H15: =IFERROR(Verkoopkosten[[#This Row],[Huidige periode]]/SUBTOTAL(109,Verkoopinkomsten[Huidige periode]),0) -> 0 | I15: =IFERROR(Verkoopkosten[[#This Row],[Huidige periode]]/Verkoopkosten[[#This Row],[Vorige periode]]-1,0) -> 0 | J15: =IFERROR(Verkoopkosten[[#This Row],[Huidige periode]]/Verkoopkosten[[#This Row],[Budget]]-1,0) -> 0
B16: Totaal | D16: =SUBTOTAL(109,Verkoopkosten[Vorige periode]) -> 0 | E16: =SUBTOTAL(109,Verkoopkosten[Budget]) -> 7 | F16: =SUBTOTAL(109,Verkoopkosten[Huidige periode]) -> 7 | H16: =IFERROR(Verkoopkosten[[#Totals],[Huidige periode]]/SUBTOTAL(109,Verkoopinkomsten[Huidige periode]),0) -> 15.6% | I16: =IFERROR(Verkoopkosten[[#Totals],[Huidige periode]]/Verkoopkosten[[#Totals],[Vorige periode]]-1,0) -> 0 | J16: =IFERROR(Verkoopkosten[[#Totals],[Huidige periode]]/Verkoopkosten[[#Totals],[Budget]]-1,0) -> 0
B18: Brutowinst | D18: =SUM(Verkoopinkomsten[Vorige periode])-SUM(Verkoopkosten[Vorige periode]) -> 40 | E18: =SUM(Verkoopinkomsten[Budget])-SUM(Verkoopkosten[Budget]) -> 43 | F18: =SUM(Verkoopinkomsten[Huidige periode])-SUM(Verkoopkosten[Huidige periode]) -> 38 | H18: =IFERROR(F18/SUBTOTAL(109,Verkoopinkomsten[Huidige periode]),0) -> 84.4% | I18: =IFERROR(F18/D18-1,0) -> -5.0% | J18: =IFERROR(F18/E18-1,0) -> -11.6%
B20: Bedrijfsuitgaven: verkoop en marketing
B21: Reclame | E21: 22 | F21: 19 | H21: =IFERROR(VerkoopEnMarketing[[#This Row],[Huidige periode]]/SUBTOTAL(109,Verkoopinkomsten[Huidige periode]),0) -> 42.2% | I21: =IFERROR(VerkoopEnMarketing[[#This Row],[Huidige periode]]/VerkoopEnMarketing[[#This Row],[Vorige periode]]-1,0) -> 0 | J21: =IFERROR(VerkoopEnMarketing[[#This Row],[Huidige periode]]/VerkoopEnMarketing[[#This Row],[Budget]]-1,0) -> -13.6%
B22: Direct marketing | H22: =IFERROR(VerkoopEnMarketing[[#This Row],[Huidige periode]]/SUBTOTAL(109,Verkoopinkomsten[Huidige periode]),0) -> 0 | I22: =IFERROR(VerkoopEnMarketing[[#This Row],[Huidige periode]]/VerkoopEnMarketing[[#This Row],[Vorige periode]]-1,0) -> 0 | J22: =IFERROR(VerkoopEnMarketing[[#This Row],[Huidige periode]]/VerkoopEnMarketing[[#This Row],[Budget]]-1,0) -> 0
B23: Overige uitgaven (specificeren) | H23: =IFERROR(VerkoopEnMarketing[[#This Row],[Huidige periode]]/SUBTOTAL(109,Verkoopinkomsten[Huidige periode]),0) -> 0 | I23: =IFERROR(VerkoopEnMarketing[[#This Row],[Huidige periode]]/VerkoopEnMarketing[[#This Row],[Vorige periode]]-1,0) -> 0 | J23: =IFERROR(VerkoopEnMarketing[[#This Row],[Huidige periode]]/VerkoopEnMarketing[[#This Row],[Budget]]-1,0) -> 0
B24: Totaal | D24: =SUBTOTAL(109,VerkoopEnMarketing[Vorige periode]) -> 0 | E24: =SUBTOTAL(109,VerkoopEnMarketing[Budget]) -> 22 | F24: =SUBTOTAL(109,VerkoopEnMarketing[Huidige periode]) -> 19 | H24: =IFERROR(VerkoopEnMarketing[[#Totals],[Huidige periode]]/SUBTOTAL(109,Verkoopinkomsten[Huidige periode]),0) -> 42.2% | J24: =SUBTOTAL(109,VerkoopEnMarketing[% afwijking van budget]) -> -13.6%
B26: Bedrijfsuitgaven: algemeen en administratie
B27: Lonen en salarissen | E27: 56 | F27: 51 | H27: =IFERROR(AlgemeenEnAdministratief[[#This Row],[Huidige periode]]/SUBTOTAL(109,Verkoopinkomsten[Huidige periode]),0) -> 113.3% | I27: =IFERROR(AlgemeenEnAdministratief[[#This Row],[Huidige periode]]/AlgemeenEnAdministratief[[#This Row],[Vorige periode]]-1,0) -> 0 | J27: =IFERROR(AlgemeenEnAdministratief[[#This Row],[Huidige periode]]/AlgemeenEnAdministratief[[#This Row],[Budget]]-1,0) -> -8.9%
B28: Externe services | H28: =IFERROR(AlgemeenEnAdministratief[[#This Row],[Huidige periode]]/SUBTOTAL(109,Verkoopinkomsten[Huidige periode]),0) -> 0 | I28: =IFERROR(AlgemeenEnAdministratief[[#This Row],[Huidige periode]]/AlgemeenEnAdministratief[[#This Row],[Vorige periode]]-1,0) -> 0 | J28: =IFERROR(AlgemeenEnAdministratief[[#This Row],[Huidige periode]]/AlgemeenEnAdministratief[[#This Row],[Budget]]-1,0) -> 0
B29: Kantoorartikelen | H29: =IFERROR(AlgemeenEnAdministratief[[#This Row],[Huidige periode]]/SUBTOTAL(109,Verkoopinkomsten[Huidige periode]),0) -> 0 | I29: =IFERROR(AlgemeenEnAdministratief[[#This Row],[Huidige periode]]/AlgemeenEnAdministratief[[#This Row],[Vorige periode]]-1,0) -> 0 | J29: =IFERROR(AlgemeenEnAdministratief[[#This Row],[Huidige periode]]/AlgemeenEnAdministratief[[#This Row],[Budget]]-1,0) -> 0
B30: Maaltijden en ontspanning | H30: =IFERROR(AlgemeenEnAdministratief[[#This Row],[Huidige periode]]/SUBTOTAL(109,Verkoopinkomsten[Huidige periode]),0) -> 0 | I30: =IFERROR(AlgemeenEnAdministratief[[#This Row],[Huidige periode]]/AlgemeenEnAdministratief[[#This Row],[Vorige periode]]-1,0) -> 0 | J30: =IFERROR(AlgemeenEnAdministratief[[#This Row],[Huidige periode]]/AlgemeenEnAdministratief[[#This Row],[Budget]]-1,0) -> 0
B31: Huur | H31: =IFERROR(AlgemeenEnAdministratief[[#This Row],[Huidige periode]]/SUBTOTAL(109,Verkoopinkomsten[Huidige periode]),0) -> 0 | I31: =IFERROR(AlgemeenEnAdministratief[[#This Row],[Huidige periode]]/AlgemeenEnAdministratief[[#This Row],[Vorige periode]]-1,0) -> 0 | J31: =IFERROR(AlgemeenEnAdministratief[[#This Row],[Huidige periode]]/AlgemeenEnAdministratief[[#This Row],[Budget]]-1,0) -> 0
B32: Telefoon | H32: =IFERROR(AlgemeenEnAdministratief[[#This Row],[Huidige periode]]/SUBTOTAL(109,Verkoopinkomsten[Huidige periode]),0) -> 0 | I32: =IFERROR(AlgemeenEnAdministratief[[#This Row],[Huidige periode]]/AlgemeenEnAdministratief[[#This Row],[Vorige periode]]-1,0) -> 0 | J32: =IFERROR(AlgemeenEnAdministratief[[#This Row],[Huidige periode]]/AlgemeenEnAdministratief[[#This Row],[Budget]]-1,0) -> 0
B33: Gas, water, elektra | H33: =IFERROR(AlgemeenEnAdministratief[[#This Row],[Huidige periode]]/SUBTOTAL(109,Verkoopinkomsten[Huidige periode]),0) -> 0 | I33: =IFERROR(AlgemeenEnAdministratief[[#This Row],[Huidige periode]]/AlgemeenEnAdministratief[[#This Row],[Vorige periode]]-1,0) -> 0 | J33: =IFERROR(AlgemeenEnAdministratief[[#This Row],[Huidige periode]]/AlgemeenEnAdministratief[[#This Row],[Budget]]-1,0) -> 0
B34: Afschrijving | H34: =IFERROR(AlgemeenEnAdministratief[[#This Row],[Huidige periode]]/SUBTOTAL(109,Verkoopinkomsten[Huidige periode]),0) -> 0 | I34: =IFERROR(AlgemeenEnAdministratief[[#This Row],[Huidige periode]]/AlgemeenEnAdministratief[[#This Row],[Vorige periode]]-1,0) -> 0 | J34: =IFERROR(AlgemeenEnAdministratief[[#This Row],[Huidige periode]]/AlgemeenEnAdministratief[[#This Row],[Budget]]-1,0) -> 0
B35: Verzekeringen | H35: =IFERROR(AlgemeenEnAdministratief[[#This Row],[Huidige periode]]/SUBTOTAL(109,Verkoopinkomsten[Huidige periode]),0) -> 0 | I35: =IFERROR(AlgemeenEnAdministratief[[#This Row],[Huidige periode]]/AlgemeenEnAdministratief[[#This Row],[Vorige periode]]-1,0) -> 0 | J35: =IFERROR(AlgemeenEnAdministratief[[#This Row],[Huidige periode]]/AlgemeenEnAdministratief[[#This Row],[Budget]]-1,0) -> 0
B36: Reparatie en onderhoud | H36: =IFERROR(AlgemeenEnAdministratief[[#This Row],[Huidige periode]]/SUBTOTAL(109,Verkoopinkomsten[Huidige periode]),0) -> 0 | I36: =IFERROR(AlgemeenEnAdministratief[[#This Row],[Huidige periode]]/AlgemeenEnAdministratief[[#This Row],[Vorige periode]]-1,0) -> 0 | J36: =IFERROR(AlgemeenEnAdministratief[[#This Row],[Huidige periode]]/AlgemeenEnAdministratief[[#This Row],[Budget]]-1,0) -> 0
B37: Overige uitgaven (specificeren) | H37: =IFERROR(AlgemeenEnAdministratief[[#This Row],[Huidige periode]]/SUBTOTAL(109,Verkoopinkomsten[Huidige periode]),0) -> 0 | I37: =IFERROR(AlgemeenEnAdministratief[[#This Row],[Huidige periode]]/AlgemeenEnAdministratief[[#This Row],[Vorige periode]]-1,0) -> 0 | J37: =IFERROR(AlgemeenEnAdministratief[[#This Row],[Huidige periode]]/AlgemeenEnAdministratief[[#This Row],[Budget]]-1,0) -> 0
B38: Totaal | D38: =SUBTOTAL(109,AlgemeenEnAdministratief[Vorige periode]) -> 0 | E38: =SUBTOTAL(109,AlgemeenEnAdministratief[Budget]) -> 56 | F38: =SUBTOTAL(109,AlgemeenEnAdministratief[Huidige periode]) -> 51 | H38: =IFERROR(AlgemeenEnAdministratief[[#Totals],[Huidige periode]]/SUBTOTAL(109,Verkoopinkomsten[Huidige periode]),0) -> 113.3% | I38: =IFERROR(AlgemeenEnAdministratief[[#Totals],[Huidige periode]]/AlgemeenEnAdministratief[[#Totals],[Vorige periode]]-1,0) -> 0 | J38: =IFERROR(AlgemeenEnAdministratief[[#Totals],[Huidige periode]]/AlgemeenEnAdministratief[[#Totals],[Budget]]-1,0) -> -8.9%
B40: Bedrijfsuitgaven: overig
B41: Overige bedrijfsuitgaven 1 | E41: 10 | H41: =IFERROR(AndereUitgavencategorieBedrijfsvoering[[#This Row],[Huidige periode]]/SUBTOTAL(109,Verkoopinkomsten[Huidige periode]),0) -> 0 | I41: =IFERROR(AndereUitgavencategorieBedrijfsvoering[[#This Row],[Huidige periode]]/AndereUitgavencategorieBedrijfsvoering[[#This Row],[Vorige periode]]-1,0) -> 0 | J41: =IFERROR(AndereUitgavencategorieBedrijfsvoering[[#This Row],[Huidige periode]]/AndereUitgavencategorieBedrijfsvoering[[#This Row],[Budget]]-1,0) -> -100.0%
B42: Overige bedrijfsuitgaven 2 | H42: =IFERROR(AndereUitgavencategorieBedrijfsvoering[[#This Row],[Huidige periode]]/SUBTOTAL(109,Verkoopinkomsten[Huidige periode]),0) -> 0 | I42: =IFERROR(AndereUitgavencategorieBedrijfsvoering[[#This Row],[Huidige periode]]/AndereUitgavencategorieBedrijfsvoering[[#This Row],[Vorige periode]]-1,0) -> 0 | J42: =IFERROR(AndereUitgavencategorieBedrijfsvoering[[#This Row],[Huidige periode]]/AndereUitgavencategorieBedrijfsvoering[[#This Row],[Budget]]-1,0) -> 0
B43: Totaal | D43: =SUBTOTAL(109,AndereUitgavencategorieBedrijfsvoering[Vorige periode]) -> 0 | E43: =SUBTOTAL(109,AndereUitgavencategorieBedrijfsvoering[Budget]) -> 10 | F43: =SUBTOTAL(109,AndereUitgavencategorieBedrijfsvoering[Huidige periode]) -> 0 | H43: =IFERROR(AndereUitgavencategorieBedrijfsvoering[[#Totals],[Huidige periode]]/SUBTOTAL(109,Verkoopinkomsten[Huidige periode]),0) -> 0 | I43: =IFERROR(AndereUitgavencategorieBedrijfsvoering[[#Totals],[Huidige periode]]/AndereUitgavencategorieBedrijfsvoering[[#Totals],[Vorige periode]]-1,0) -> 0 | J43: =SUBTOTAL(109,AndereUitgavencategorieBedrijfsvoering[% afwijking van budget]) -> -100.0%
B45: Totale bedrijfsuitgaven | D45: =SUM(VerkoopEnMarketing[Vorige periode],AlgemeenEnAdministratief[Vorige periode],AndereUitgavencategorieBedrijfsvoering[Vorige periode]) -> 0 | E45: =SUM(VerkoopEnMarketing[Budget],AlgemeenEnAdministratief[Budget],AndereUitgavencategorieBedrijfsvoering[Budget]) -> 88 | F45: =SUM(VerkoopEnMarketing[Huidige periode],AlgemeenEnAdministratief[Huidige periode],AndereUitgavencategorieBedrijfsvoering[Huidige periode]) -> 70 | H45: =IFERROR(F45/SUBTOTAL(109,Verkoopinkomsten[Huidige periode]),0) -> 155.6% | I45: =IFERROR(F45/D45-1,0) -> 0 | J45: =IFERROR(F45/E45-1,0) -> -20.5%
B47: Inkomsten uit onderneming | D47: =D18-D45 -> 40 | E47: =E18-E45 -> -45 | F47: =F18-F45 -> -32 | H47: =IFERROR(F47/SUBTOTAL(109,Verkoopinkomsten[Huidige periode]),0) -> -71.1% | I47: =IFERROR(IF(D47=F47,0,IF(F47>D47,ABS((F47/D47)-1),IF(AND(F47<D47,D47<0),-((F47/D47)-1),(F47/D47)-1))),0) -> -180.0% | J47: =IFERROR(IF(E47=F47,0,IF(F47>E47,ABS((F47/E47)-1),IF(AND(F47<E47,E47<0),-((F47/E47)-1),(F47/E47)-1))),0) -> 28.9%
B49: Overige inkomsten | H49: =IFERROR(F49/SUBTOTAL(109,Verkoopinkomsten[Huidige periode]),0) -> 0 | I49: =IFERROR(F49/D49-1,0) -> 0 | J49: =IFERROR(F49/E49-1,0) -> 0
B51: Belasting
B52: Inkomstenbelasting | E52: 32 | F52: 30 | H52: =IFERROR(Belasting[[#This Row],[Huidige periode]]/SUBTOTAL(109,Verkoopinkomsten[Huidige periode]),0) -> 66.7% | I52: =IFERROR(Belasting[[#This Row],[Huidige periode]]/Belasting[[#This Row],[Vorige periode]]-1,0) -> 0 | J52: =IFERROR(Belasting[[#This Row],[Huidige periode]]/Belasting[[#This Row],[Budget]]-1,0) -> -6.3%
B53: Loonbelasting | H53: =IFERROR(Belasting[[#This Row],[Huidige periode]]/SUBTOTAL(109,Verkoopinkomsten[Huidige periode]),0) -> 0 | I53: =IFERROR(Belasting[[#This Row],[Huidige periode]]/Belasting[[#This Row],[Vorige periode]]-1,0) -> 0 | J53: =IFERROR(Belasting[[#This Row],[Huidige periode]]/Belasting[[#This Row],[Budget]]-1,0) -> 0
B54: Onroerendgoedbelasting | H54: =IFERROR(Belasting[[#This Row],[Huidige periode]]/SUBTOTAL(109,Verkoopinkomsten[Huidige periode]),0) -> 0 | I54: =IFERROR(Belasting[[#This Row],[Huidige periode]]/Belasting[[#This Row],[Vorige periode]]-1,0) -> 0 | J54: =IFERROR(Belasting[[#This Row],[Huidige periode]]/Belasting[[#This Row],[Budget]]-1,0) -> 0
B55: Overige belastingen (specificeren) | H55: =IFERROR(Belasting[[#This Row],[Huidige periode]]/SUBTOTAL(109,Verkoopinkomsten[Huidige periode]),0) -> 0 | I55: =IFERROR(Belasting[[#This Row],[Huidige periode]]/Belasting[[#This Row],[Vorige periode]]-1,0) -> 0 | J55: =IFERROR(Belasting[[#This Row],[Huidige periode]]/Belasting[[#This Row],[Budget]]-1,0) -> 0
B56: Totaal | D56: =SUBTOTAL(109,Belasting[Vorige periode]) -> 0 | E56: =SUBTOTAL(109,Belasting[Budget]) -> 32 | F56: =SUBTOTAL(109,Belasting[Huidige periode]) -> 30 | H56: =IFERROR(Belasting[[#Totals],[Huidige periode]]/SUBTOTAL(109,Verkoopinkomsten[Huidige periode]),0) -> 66.7% | I56: =IFERROR(Belasting[[#Totals],[Huidige periode]]/Belasting[[#Totals],[Vorige periode]]-1,0) -> 0 | J56: =IFERROR(Belasting[[#Totals],[Huidige periode]]/Belasting[[#Totals],[Budget]]-1,0) -> -6.3%
B58: Nettowinst | D58: =D47+D49-Belasting[[#Totals],[Vorige periode]] -> 40 | E58: =E47+E49-Belasting[[#Totals],[Vorige periode]] -> -45 | F58: =F47+F49-Belasting[[#Totals],[Vorige periode]] -> -32 | H58: =IFERROR(F58/SUBTOTAL(109,Verkoopinkomsten[Huidige periode]),0) -> -71.1% | I58: =IFERROR(IF(D58=F58,0,IF(F58>D58,ABS((F58/D58)-1),IF(AND(F58<D58,D58<0),-((F58/D58)-1),(F58/D58)-1))),0) -> -180.0% | J58: =IFERROR(IF(E58=F58,0,IF(F58>E58,ABS((F58/E58)-1),IF(AND(F58<E58,E58<0),-((F58/E58)-1),(F58/E58)-1))),0) -> 28.9%
B59: Brutowinst | D59: =D18/SUM(Verkoopinkomsten[Vorige periode]) -> 100.0% | E59: =E18/SUM(Verkoopinkomsten[Budget]) -> 86.0% | F59: =F18/SUM(Verkoopinkomsten[Huidige periode]) -> 84.4%
B60: Rendement op omzet | D60: =D58/SUM(Verkoopinkomsten[Vorige periode]) -> 100.0% | E60: =E58/SUM(Verkoopinkomsten[Budget]) -> -90.0% | F60: =F58/SUM(Verkoopinkomsten[Huidige periode]) -> -71.1%
